fUST/lending_fUST_20241108
["ID","MTS","AMOUNT","RATE_DAILY","PERIOD"]
[341587081,1731011443620,-500.0,0.00026999,2]
[341587083,1731011443630,-346.91234672,0.00026999,2]
[341587084,1731011443639,-197.17376641,0.00026999,2]
[341587086,1731011443649,-312.82586933,0.00026999,2]
[341587088,1731011443659,-500.0,0.00026999,2]
[341587090,1731011443668,-500.0,0.00026999,2]
[341587092,1731011443678,-311.15525695,0.00026999,2]
[341587095,1731011443688,-157.48147101,0.00026999,2]
[341587097,1731011443697,-151.0,0.00027,7]
[341587100,1731011443707,-151.0,0.00027,7]
[341587103,1731011443716,-151.0,0.00027,7]
[341587105,1731011443726,-16534.52435953,0.00027,2]
[341587107,1731011443738,-347.17157082,0.00027,2]
[341587115,1731011443813,-6320.67891208,0.00027,2]
[341587117,1731011443826,-680.4484889,0.00027,2]
[341587119,1731011443839,-725.96988784,0.00027,2]
[341587214,1731011446216,-140371.78426345,0.00027,2]
[341587216,1731011446226,-823.0,0.00027028,2]
[341587218,1731011446236,-500.0,0.00027397,2]
[341587219,1731011446246,-500.0,0.00027397,2]
[341587221,1731011446256,-500.0,0.00027397,2]
[341587223,1731011446266,-500.0,0.00027397,2]
[341587225,1731011446275,-500.0,0.00027397,2]
[341587227,1731011446285,-596.09696666,0.00027397,2]
[341587228,1731011446295,-10187.20941537,0.000275,2]
[341587230,1731011446305,-169.3431688,0.00027507,30]
[341587232,1731011446315,-153.0,0.00027507,30]
[341587234,1731011446325,-153.0,0.00027507,30]
[341587236,1731011446335,-4846.94778751,0.0002785,2]
[341587238,1731011446345,-520.0,0.0002795,2]
[341587239,1731011446359,-160.0,0.0002803,4]
[341587241,1731011446369,-402.7434423,0.00028192,30]
[341587243,1731011446380,-311.3565044,0.00028192,30]
[341587245,1731011446392,-500.0,0.00028447,2]
[341587247,1731011446402,-466.50233486,0.00028457,2]
[341587249,1731011446413,-153.04,0.0002854,2]
[341587250,1731011446423,-500.0,0.00028594,7]
[341587252,1731011446434,-1500.0,0.00028675,5]
[341587254,1731011446444,-600.0,0.00029086,2]
[341587256,1731011446453,-160.0,0.00029157,5]
[341587257,1731011446462,-153.071,0.0002919,19]
[341587259,1731011446472,-4846.94778751,0.00029337,2]
[341587261,1731011446483,-153.0,0.00029374,2]
[341587263,1731011446492,-153.0,0.00029397,30]
[341587265,1731011446503,-153.0,0.00029397,30]
[341587267,1731011446513,-153.0,0.00029397,30]
[341587269,1731011446523,-153.0,0.00029397,30]
[341587271,1731011446534,-153.0,0.00029397,30]
[341587273,1731011446544,-153.0,0.00029397,30]
[341587275,1731011446554,-153.0,0.00029397,30]
[341587279,1731011446583,-153.0,0.00029397,30]
[341587282,1731011446604,-153.0,0.00029397,30]
[341587285,1731011446626,-153.0,0.00029397,30]
[341587289,1731011446650,-153.0,0.00029397,30]
[341587292,1731011446672,-153.0,0.00029397,30]
[341587295,1731011446693,-153.0,0.00029397,30]
[341587298,1731011446716,-153.0,0.00029397,30]
[341587301,1731011446733,-153.0,0.00029397,30]
[341587304,1731011446756,-153.0,0.00029397,30]
[341587307,1731011446780,-153.0,0.00029397,30]
[341587310,1731011446798,-153.0,0.00029397,30]
[341587312,1731011446813,-153.0,0.00029397,30]
[341587313,1731011446835,-153.0,0.00029397,30]
[341587314,1731011446854,-153.0,0.00029397,30]
[341587315,1731011446874,-153.0,0.00029397,30]
[341587316,1731011446889,-153.0,0.00029397,30]
[341587317,1731011446907,-1152.0,0.00029401,2]
[341587318,1731011446923,-1000.0,0.00029437,2]
[341587319,1731011446940,-151.0,0.00029437,7]
[341587320,1731011446960,-151.0,0.00029437,7]
[341587321,1731011446975,-151.0,0.0002947,7]
[341587322,1731011446992,-171.388737,0.000295,16]
[341587323,1731011447010,-3000.0,0.000295,2]
[341587324,1731011447028,-3000.0,0.0002951,2]
[341587325,1731011447044,-151.0,0.0002951,7]
[341587326,1731011447062,-151.0,0.0002951,7]
[341587327,1731011447080,-1357.981308,0.0002951,7]
[341587328,1731011447097,-1357.981308,0.0002951,7]
[341587329,1731011447116,-151.516321,0.0002951,7]
[341587330,1731011447132,-679.289413,0.00029518,7]
[341587331,1731011447150,-679.289413,0.00029518,7]
[341587332,1731011447169,-151.0,0.00029518,7]
[341587333,1731011447193,-151.0,0.00029518,7]
[341587334,1731011447209,-808.59829,0.00029518,7]
[341587335,1731011447226,-808.59829,0.00029518,7]
[341587336,1731011447243,-151.0,0.00029518,2]
[341587337,1731011447262,-437.85543,0.00029518,7]
[341587338,1731011447278,-437.85543,0.00029518,7]
[341587339,1731011447294,-1647.659359,0.00029518,7]
[341587340,1731011447310,-1647.659359,0.00029518,7]
[341587341,1731011447327,-529.0,0.00029518,2]
[341587342,1731011447343,-1155.0,0.00029518,2]
[341587343,1731011447360,-2392.0,0.00029518,2]
[341587345,1731011447372,-220.861061,0.0002952,7]
[341587352,1731011447518,-220.861061,0.0002952,7]
[341587355,1731011447532,-386.573737,0.0002952,7]
[341587357,1731011447541,-386.573737,0.0002952,7]
[341587359,1731011447551,-2514.122363,0.0002952,7]
[341587361,1731011447561,-2514.122363,0.0002952,7]
[341587363,1731011447570,-3000.0,0.0002952,2]
[341587365,1731011447581,-291.492082,0.0002952,7]
[341587367,1731011447590,-291.492082,0.0002952,7]
[341587369,1731011447599,-500.301062,0.0002952,7]
[341587371,1731011447609,-500.301062,0.0002952,7]
[341587373,1731011447619,-151.0,0.0002952,7]
[341587375,1731011447629,-3000.0,0.0002953,2]
[341587377,1731011447640,-1306.77760089,0.00029536,2]
[341587379,1731011447650,-706.133575,0.00029536,7]
[341587381,1731011447660,-216.77187294,0.00029536,7]
[341587383,1731011447670,-151.0,0.00029536,7]
[341587385,1731011447679,-151.0,0.00029536,7]
[341587387,1731011447689,-44330.3473647,0.00029537,2]
[341587389,1731011447698,-151.0,0.00029537,7]
[341587391,1731011447707,-151.0,0.00029537,7]
[341587393,1731011447718,-151.0,0.00029537,7]
[341587395,1731011447729,-151.0,0.00029537,7]
[341587397,1731011447739,-151.0,0.00029537,7]
[341587400,1731011447750,-151.0,0.00029537,7]
[341587402,1731011447762,-402.476781,0.00029537,7]
[341587404,1731011447771,-402.476781,0.00029537,7]
[341587406,1731011447781,-151.0,0.00029537,7]
[341587408,1731011447791,-151.0,0.00029537,7]
[341587410,1731011447800,-887.819683,0.00029537,7]
[341587412,1731011447810,-887.819683,0.00029537,7]
[341587414,1731011447819,-1157.941828,0.00029537,7]
[341587416,1731011447830,-1157.941828,0.00029537,7]
[341587418,1731011447841,-156.427579,0.00029537,7]
[341587421,1731011447853,-151.0,0.00029537,7]
[341587423,1731011447865,-151.0,0.00029537,7]
[341587425,1731011447875,-151.0,0.00029537,7]
[341587427,1731011447885,-1688.613887,0.00029537,7]
[341587429,1731011447896,-1688.613887,0.00029537,7]
[341587431,1731011447906,-220.861061,0.00029537,7]
[341587433,1731011447916,-220.861061,0.00029537,7]
[341587435,1731011447926,-669.350032,0.00029537,7]
[341587437,1731011447937,-669.350032,0.00029537,7]
[341587440,1731011447952,-386.573737,0.00029537,7]
[341587442,1731011447962,-386.573737,0.00029537,7]
[341587444,1731011447974,-706.133575,0.00029537,7]
[341587446,1731011447984,-240.076159,0.00029537,7]
[341587448,1731011447995,-240.076159,0.00029537,7]
[341587449,1731011448004,-1239.410312,0.00029537,7]
[341587452,1731011448015,-2514.122363,0.00029537,7]
[341587454,1731011448025,-1239.410312,0.00029537,7]
[341587456,1731011448035,-2514.122363,0.00029537,7]
[341587458,1731011448045,-679.289413,0.00029537,7]
[341587460,1731011448055,-84.43766764,0.00029537,7]
[341587689,1731011450581,5000.0,0.00020844,2]
[341589159,1731011466000,5000.0,0.00020844,2]
[341590646,1731011482517,2951.18295949,0.00020844,2]
[341592578,1731011537692,173.077079,0.00013973,2]
[341592581,1731011604946,1000.0,9.961e-05,2]
[341592586,1731011976060,1374.5371717,0.00032482,30]
[341592591,1731012158287,265.744717,0.00013973,2]
[341592592,1731012158484,265.744717,0.00020447,2]
[341593032,1731012635355,-694.44444444,0.00020845,2]
[341593035,1731012635365,-200.0,0.00025014,15]
[341593037,1731012635375,-255.169632,0.00025109,2]
[341593039,1731012635385,-300.0,0.00025815,2]
[341593040,1731012635395,-7378.39176221,0.00025816,2]
[341593506,1731012640217,-4119.9072035,0.00025816,2]
[341593507,1731012640232,-619.71305479,0.00025816,2]
[341593508,1731012640244,-261.546,0.00025816,2]
[341594024,1731012646312,-12520.4419795,0.00025816,2]
[341594027,1731012646324,-1271.6909998,0.00025893,7]
[341594030,1731012646334,-160.0,0.00026738,3]
[341594033,1731012646345,-265.744717,0.00026921,2]
[341594036,1731012646360,-154.0,0.00027,2]
[341594039,1731012646370,-500.0,0.00027397,2]
[341594042,1731012646381,-160.0,0.00027704,4]
[341594044,1731012646391,-179.832,0.00027894,18]
[341594046,1731012646401,-153.0,0.00028164,30]
[341594048,1731012646411,-303.4793862,0.00028164,30]
[341594050,1731012646421,-153.0,0.00028164,30]
[341594052,1731012646434,-303.4793862,0.00028164,30]
[341594054,1731012646445,-303.4793862,0.00028164,30]
[341594056,1731012646455,-153.0,0.00028164,30]
[341594058,1731012646465,-303.4793862,0.00028164,30]
[341594060,1731012646474,-153.0,0.00028164,30]
[341594061,1731012646484,-153.0,0.00028478,30]
[341594062,1731012646496,-500.0,0.00028646,7]
[341594063,1731012646506,-160.0,0.00028671,5]
[341594064,1731012646516,-500.0,0.00028767,2]
[341594065,1731012646528,-211.3465353,0.00028822,30]
[341594066,1731012646538,-211.3465353,0.00028822,30]
[341594067,1731012646548,-211.3465353,0.00028822,30]
[341594068,1731012646558,-211.3465353,0.00028822,30]
[341594069,1731012646568,-303.4793862,0.00028986,30]
[341594070,1731012646578,-303.4793862,0.00028986,30]
[341594071,1731012646590,-303.4793862,0.00028986,30]
[341594072,1731012646600,-211.3465353,0.00029151,30]
[341594073,1731012646609,-201.437,0.00029288,2]
[341594074,1731012646620,-1134.0,0.00029288,2]
[341594075,1731012646630,-529.0,0.00029288,2]
[341594076,1731012646645,-2392.0,0.00029288,2]
[341594077,1731012646659,-211.3465353,0.00029479,30]
[341594078,1731012646670,-211.3465353,0.00029479,30]
[341594079,1731012646680,-211.3465353,0.00029479,30]
[341594080,1731012646691,-211.3465353,0.00029479,30]
[341594081,1731012646702,-8213.09600174,0.00029535,2]
[341594082,1731012646712,-267.6642442,0.00029535,2]
[341594083,1731012646723,-1088.98133408,0.00029536,2]
[341594084,1731012646733,-151.0,0.00029537,7]
[341594085,1731012646745,-151.0,0.00029537,7]
[341594086,1731012646755,-437.85543,0.00029537,7]
[341594087,1731012646766,-437.85543,0.00029537,7]
[341594088,1731012646776,-8213.09600171,0.00029545,2]
[341594089,1731012646787,-8213.09600171,0.00029555,2]
[341594090,1731012646799,-8213.09600171,0.00029565,2]
[341594091,1731012646809,-150.112233,0.000296,16]
[341594092,1731012646819,-582.12,0.00029625,3]
[341594093,1731012646828,-1440.36,0.00029625,10]
[341594094,1731012646838,-1200.3,0.00029625,10]
[341594095,1731012646849,-500.0,0.00029634,7]
[341594096,1731012646859,-600.0,0.00029634,2]
[341594097,1731012646870,-168.73028741,0.00029634,2]
[341594098,1731012646880,-500.0,0.00029634,2]
[341594099,1731012646889,-349.1844179,0.00029634,2]
[341594100,1731012646899,-584.62996705,0.00029634,2]
[341594101,1731012646908,-500.0,0.00029634,2]
[341594102,1731012646918,-500.0,0.00029634,2]
[341594103,1731012646927,-432.16700178,0.00029634,2]
[341594104,1731012646938,-500.0,0.00029634,2]
[341594105,1731012646949,-500.0,0.00029634,2]
[341594106,1731012646960,-500.0,0.00029634,2]
[341594107,1731012646970,-500.0,0.00029634,2]
[341594108,1731012646981,-500.0,0.00029634,2]
[341594109,1731012646999,-544.71331625,0.00029634,2]
[341594110,1731012647011,-500.0,0.00029634,2]
[341594112,1731012647021,-500.0,0.00029634,2]
[341594113,1731012647031,-500.0,0.00029634,2]
[341594115,1731012647040,-151.0,0.00029635,7]
[341594116,1731012647050,-151.0,0.00029635,7]
[341594118,1731012647060,-151.0,0.00029635,7]
[341594119,1731012647070,-151.0,0.00029635,7]
[341594121,1731012647080,-437.85543,0.00029635,7]
[341594123,1731012647090,-437.85543,0.00029635,7]
[341594125,1731012647100,-437.85543,0.00029635,7]
[341594127,1731012647110,-437.85543,0.00029635,7]
[341594129,1731012647120,-151.0,0.00029635,7]
[341594141,1731012647225,-151.0,0.00029635,7]
[341594143,1731012647237,-151.0,0.00029635,7]
[341594145,1731012647248,-727.43987457,0.00029635,2]
[341594147,1731012647257,-500.0,0.00029635,2]
[341594149,1731012647267,-1000.0,0.00029635,2]
[341594151,1731012647277,-55555.0,0.00029635,3]
[341594153,1731012647287,-160.0,0.00029638,6]
[341594155,1731012647297,-500.0,0.00029673,5]
[341594158,1731012647306,-514.00819309,0.00029673,5]
[341594160,1731012647316,-500.0,0.00029673,5]
[341594162,1731012647325,-500.0,0.00029673,2]
[341594164,1731012647335,-4351.85979929,0.00029696,2]
[341594166,1731012647348,-500.0,0.00029699,2]
[341594168,1731012647362,-500.0,0.00029699,2]
[341594170,1731012647372,-500.0,0.00029699,2]
[341594172,1731012647381,-217.80867987,0.00029699,2]
[341594174,1731012647391,-218.97810853,0.00029699,2]
[341594176,1731012647401,-310.2370297,0.00029699,2]
[341594178,1731012647411,-188.03657767,0.00029699,2]
[341594180,1731012647420,-242.83864271,0.00029699,2]
[341594182,1731012647431,-500.0,0.00029699,2]
[341594184,1731012647440,-461.00657302,0.00029699,2]
[341594186,1731012647450,-500.0,0.00029699,2]
[341594188,1731012647461,-500.0,0.00029699,2]
[341594190,1731012647470,-500.0,0.00029699,2]
[341594192,1731012647479,-500.0,0.00029699,2]
[341594194,1731012647490,-150.112233,0.000297,12]
[341594196,1731012647499,-150.112233,0.000297,10]
[341594198,1731012647509,-150.112233,0.000297,17]
[341594200,1731012647518,-7207.34921664,0.000297,2]
[341594604,1731013234913,225.883009,0.00013973,2]
[341594605,1731013235149,225.883009,0.00020447,2]
[341594606,1731013253651,694.44444444,0.00020844,2]
[341594610,1731013437555,158.71999267,0.00020844,2]
[341594746,1731013762363,171.176377,0.00013973,2]
[341594834,1731013838678,-570.00975429,0.00022076,2]
[341594838,1731013840480,-124.43469015,0.00022076,2]
[341594839,1731013840490,-377.14506679,0.00025,2]
[341594840,1731013840499,-300.0,0.00025899,2]
[341594841,1731013840509,-23.80003343,0.000259,2]
[341594891,1731013844098,-1974.6,0.000259,2]
[341595130,1731013846652,-394.4,0.000259,2]
[341595602,1731013866009,694.44444444,0.00020844,2]
[341595603,1731014046044,6248.93,0.00020844,2]
[341595604,1731014289764,220.102036,0.00013973,2]
[341595605,1731014289807,220.102036,0.00020447,2]
[341595609,1731014477693,694.44444444,0.00020844,2]
[341595627,1731014921558,206.65065,0.00013973,2]
[341595628,1731014921696,206.65065,0.00020447,2]
[341595629,1731014921732,1429.50330449,0.00032479,30]
[341595630,1731014924579,337.77674652,0.0001,7]
[341595739,1731015032848,-694.44444444,0.00021878,2]
[341595740,1731015032858,-300.0,0.00021999,2]
[341595741,1731015032867,-300.0,0.00021999,2]
[341595742,1731015032876,-178.44282946,0.00022,2]
[341595743,1731015032885,-818.1227261,0.00022,30]
[341595834,1731015038894,-500.0,0.00021999,2]
[341595835,1731015038904,-4.2220601,0.00021999,2]
[341596141,1731015089406,694.44444444,0.00020844,2]
[341596145,1731015699793,694.44444444,0.00020844,2]
[341596147,1731015931815,194.423336,0.00013973,2]
[341596148,1731015932048,194.423336,0.00020447,2]
[341596212,1731016172637,165.787,0.0002014,30]
[341596213,1731016173165,165.773,0.0002079,7]
[341596218,1731016222848,24900.0,0.00020545,2]
[341596257,1731016231924,-964.8785612,0.00020846,2]
[341596260,1731016231934,-557.4614388,0.00020899,2]
[341596262,1731016231946,-136.98300564,0.00020899,2]
[341596264,1731016231957,-300.0,0.0002098,2]
[341596266,1731016231967,-165.769,0.0002144,7]
[341596268,1731016231980,-897.24799436,0.00021899,2]
[341596270,1731016231993,-377.54468061,0.00021899,2]
[341596273,1731016232006,-226.48086784,0.00021899,2]
[341596275,1731016232017,-195.01178862,0.000219,2]
[341596866,1731016239982,-814.03825328,0.000219,2]
[341596868,1731016239993,-416.38628456,0.00021973,2]
[341596870,1731016240003,-477.40354427,0.00021999,2]
[341596872,1731016240013,-263.61996405,0.00021999,2]
[341596874,1731016240023,-314.52639105,0.00021999,2]
[341596876,1731016240034,-152.46607591,0.00021999,2]
[341596878,1731016240044,-246.46037953,0.00021999,2]
[341596880,1731016240054,-500.0,0.00021999,2]
[341596882,1731016240064,-500.0,0.00021999,2]
[341596885,1731016240076,-500.0,0.00021999,2]
[341596887,1731016240087,-500.0,0.00021999,2]
[341596889,1731016240099,-500.0,0.00021999,2]
[341596891,1731016240109,-500.0,0.00021999,2]
[341596893,1731016240118,-500.0,0.00021999,2]
[341596895,1731016240130,-500.0,0.00021999,2]
[341596897,1731016240140,-370.70815334,0.00021999,2]
[341596899,1731016240151,-500.0,0.00021999,2]
[341596901,1731016240161,-510.72024752,0.00021999,2]
[341596903,1731016240172,-500.0,0.00021999,2]
[341596906,1731016240183,-500.0,0.00021999,2]
[341596908,1731016240194,-178.44282947,0.00022,2]
[341596910,1731016240204,-14363.25961731,0.00022,30]
[341596912,1731016240218,-1266.47519394,0.00022,30]
[341596915,1731016240230,-4850.04268495,0.00022,30]
[341596917,1731016240242,-40546.3577388,0.00022,30]
[341596919,1731016240255,-311.9865598,0.00022,30]
[341597409,1731016245832,-12322.28149722,0.00022,30]
[341598039,1731016310430,213.05451911,0.00020746,2]
[341598040,1731016311991,694.44444444,0.00020844,2]
[341598041,1731016497385,167.000748,0.00013973,2]
[341598044,1731016835874,169.579516,0.00020726,2]
[341598045,1731016927362,694.44444444,0.00020844,2]
[341598046,1731016952669,1000.0,0.00020844,2]
[341598054,1731017118330,183.331039,0.00013973,2]
[341598055,1731017118538,183.331039,0.00020447,2]
[341598061,1731017146151,-100000.0,0.00022,30]
[341598065,1731017197602,-250000.0,0.00022,30]
[341598103,1731017317580,-5771.54243643,0.00022,30]
[341598172,1731017432200,-694.44444444,0.00020903,2]
[341598173,1731017432211,-300.0,0.0002099,2]
[341598174,1731017432223,-300.0,0.0002099,2]
[341598175,1731017432235,-981.26555556,0.00020991,2]
[341598176,1731017432248,-269.424157,0.00020991,2]
[341598223,1731017438352,-23649.31028744,0.00020991,2]
[341598225,1731017438363,-1250.78580405,0.00022,2]
[341598227,1731017438373,-420.0,0.00022833,2]
[341598229,1731017438384,-150.112233,0.00024,9]
[341598231,1731017438395,-1935.23181092,0.00024355,2]
[341598233,1731017438405,-613.30016444,0.00024455,2]
[341598235,1731017438416,-337.13792306,0.00024455,2]
[341598248,1731017438531,-220.16847373,0.00024455,2]
[341598250,1731017438542,-196.71639233,0.00024455,2]
[341598252,1731017438551,-541.18979482,0.00024455,2]
[341598254,1731017438561,-500.0,0.00024455,2]
[341598256,1731017438571,-500.0,0.00024455,2]
[341598258,1731017438581,-184.53397483,0.00024455,2]
[341598260,1731017438591,-500.0,0.00024455,2]
[341598262,1731017438601,-500.0,0.00024455,2]
[341598265,1731017438611,-500.0,0.00024455,2]
[341598267,1731017438621,-500.0,0.00024455,2]
[341598269,1731017438631,-327.5117649,0.00024455,2]
[341598271,1731017438641,-500.0,0.00024455,2]
[341598273,1731017438651,-178.44282947,0.00024455,2]
[341598275,1731017438660,-34575.68900585,0.00024456,8]
[341598277,1731017438670,-151.0,0.00024456,7]
[341598279,1731017438679,-338.213258,0.00024456,7]
[341598281,1731017438693,-338.213258,0.00024456,7]
[341598283,1731017438703,-151.0,0.00024456,3]
[341598285,1731017438714,-151.72857,0.00024456,3]
[341598287,1731017438725,-151.0,0.00024456,7]
[341598289,1731017438736,-151.0,0.00024456,7]
[341598291,1731017438747,-151.0,0.00024456,7]
[341598293,1731017438756,-151.0,0.00024456,7]
[341598296,1731017438767,-151.0,0.00024456,7]
[341598298,1731017438777,-151.0,0.00024456,7]
[341598300,1731017438788,-151.0,0.00024456,7]
[341598302,1731017438801,-151.0,0.00024456,7]
[341598304,1731017438811,-151.0,0.00024456,7]
[341598306,1731017438821,-151.0,0.00024456,7]
[341598308,1731017438832,-151.0,0.00024456,7]
[341598310,1731017438842,-151.0,0.00024456,7]
[341598312,1731017438851,-151.0,0.00024456,7]
[341598314,1731017438862,-151.0,0.00024456,7]
[341598316,1731017438872,-151.0,0.00024456,7]
[341598318,1731017438883,-151.0,0.00024456,7]
[341598320,1731017438894,-151.0,0.00024456,7]
[341598322,1731017438904,-151.0,0.00024456,7]
[341598324,1731017438914,-151.0,0.00024456,7]
[341598326,1731017438924,-151.0,0.00024456,7]
[341598328,1731017438934,-151.0,0.00024456,7]
[341598330,1731017438945,-151.0,0.00024456,7]
[341598332,1731017438955,-151.0,0.00024456,7]
[341598334,1731017438965,-242.457911,0.00024456,7]
[341598336,1731017438975,-293.59724,0.00024456,7]
[341598338,1731017438987,-151.0,0.00024456,7]
[341598342,1731017439010,-151.0,0.00024456,7]
[341598345,1731017439032,-151.0,0.00024456,7]
[341598348,1731017439052,-151.0,0.00024456,7]
[341598352,1731017439075,-151.0,0.00024456,7]
[341598355,1731017439099,-151.0,0.00024456,7]
[341598358,1731017439118,-151.0,0.00024456,7]
[341598361,1731017439142,-151.0,0.00024456,7]
[341598364,1731017439161,-151.0,0.00024456,7]
[341598367,1731017439178,-151.0,0.00024456,7]
[341598370,1731017439200,-151.0,0.00024456,7]
[341598374,1731017439223,-151.0,0.00024456,7]
[341598376,1731017439243,-151.0,0.00024456,7]
[341598379,1731017439256,-151.0,0.00024456,7]
[341598383,1731017439281,-151.0,0.00024456,7]
[341598385,1731017439298,-151.0,0.00024456,7]
[341598389,1731017439318,-151.0,0.00024456,7]
[341598391,1731017439333,-151.0,0.00024456,7]
[341598395,1731017439356,-151.0,0.00024456,7]
[341598398,1731017439375,-151.0,0.00024456,7]
[341598400,1731017439393,-151.0,0.00024456,7]
[341598403,1731017439411,-151.0,0.00024456,7]
[341598406,1731017439429,-151.0,0.00024456,7]
[341598409,1731017439445,-151.0,0.00024456,7]
[341598412,1731017439464,-151.0,0.00024456,7]
[341598415,1731017439481,-290.123784,0.00024456,7]
[341598417,1731017439499,-151.0,0.00024456,7]
[341598420,1731017439516,-151.0,0.00024456,7]
[341598423,1731017439534,-151.666021,0.00024456,7]
[341598426,1731017439552,-437.148745,0.00024456,7]
[341598429,1731017439569,-437.148745,0.00024456,7]
[341598432,1731017439586,-437.148745,0.00024456,7]
[341598434,1731017439603,-437.148745,0.00024456,7]
[341598437,1731017439620,-437.148745,0.00024456,7]
[341598440,1731017439637,-437.148745,0.00024456,7]
[341598443,1731017439653,-437.148745,0.00024456,7]
[341598445,1731017439669,-437.148745,0.00024456,7]
[341598448,1731017439685,-437.148745,0.00024456,7]
[341598451,1731017439702,-437.148745,0.00024456,7]
[341598454,1731017439720,-437.148745,0.00024456,7]
[341598456,1731017439736,-437.148745,0.00024456,7]
[341598459,1731017439754,-437.148745,0.00024456,7]
[341598462,1731017439772,-437.148745,0.00024456,7]
[341598465,1731017439789,-437.148745,0.00024456,7]
[341598467,1731017439807,-437.148745,0.00024456,7]
[341598470,1731017439824,-437.148745,0.00024456,7]
[341598472,1731017439842,-437.148745,0.00024456,7]
[341598488,1731017439976,-437.148745,0.00024456,7]
[341598490,1731017439988,-437.14874,0.00024456,7]
[341598492,1731017439999,-151.684109,0.00024456,7]
[341598494,1731017440009,-270.176082,0.00024456,7]
[341598496,1731017440019,-270.176082,0.00024456,7]
[341598498,1731017440028,-270.176082,0.00024456,7]
[341598500,1731017440038,-270.176082,0.00024456,7]
[341598502,1731017440048,-270.176082,0.00024456,7]
[341598504,1731017440058,-270.176082,0.00024456,7]
[341598506,1731017440068,-270.176082,0.00024456,7]
[341598508,1731017440078,-270.176082,0.00024456,7]
[341598510,1731017440088,-270.176082,0.00024456,7]
[341598512,1731017440097,-270.176082,0.00024456,7]
[341598514,1731017440108,-270.176082,0.00024456,7]
[341598516,1731017440118,-270.176082,0.00024456,7]
[341598519,1731017440127,-270.176082,0.00024456,7]
[341598520,1731017440137,-270.176082,0.00024456,7]
[341598523,1731017440147,-270.176082,0.00024456,7]
[341598525,1731017440156,-270.176082,0.00024456,7]
[341598527,1731017440166,-270.176082,0.00024456,7]
[341598529,1731017440176,-270.176082,0.00024456,7]
[341598531,1731017440186,-270.176082,0.00024456,7]
[341598533,1731017440196,-270.176083,0.00024456,7]
[341598536,1731017440206,-151.0,0.00024456,7]
[341598538,1731017440230,-151.0,0.00024456,7]
[341598540,1731017440243,-151.0,0.00024456,7]
[341598542,1731017440254,-151.0,0.00024456,7]
[341598544,1731017440264,-151.0,0.00024456,7]
[341598547,1731017440275,-151.0,0.00024456,7]
[341598549,1731017440286,-151.0,0.00024456,7]
[341598551,1731017440297,-151.0,0.00024456,7]
[341598553,1731017440307,-151.0,0.00024456,7]
[341598555,1731017440317,-151.0,0.00024456,7]
[341598557,1731017440328,-151.0,0.00024456,7]
[341598559,1731017440339,-151.0,0.00024456,7]
[341598561,1731017440350,-151.0,0.00024456,7]
[341598564,1731017440360,-183.385898,0.00024456,7]
[341598566,1731017440370,-3177.192209,0.00024456,7]
[341598568,1731017440380,-3177.192209,0.00024456,7]
[341598570,1731017440391,-3177.192209,0.00024456,7]
[341598572,1731017440401,-3177.192209,0.00024456,7]
[341598574,1731017440411,-3177.192209,0.00024456,7]
[341598576,1731017440422,-3177.192209,0.00024456,7]
[341598578,1731017440431,-3177.192209,0.00024456,7]
[341598580,1731017440442,-3177.192209,0.00024456,7]